bitfinex/quotes_ETHUSD_20250923
["timestamp","ask_amount","ask_price","bid_price","bid_amount"]
[1758628826649,2.28969291,4200.6,4200.5,5.42976509]
[1758628827248,2.28969291,4200.6,4200.5,5.90226509]
[1758628827747,2.28969291,4200.6,4200.5,5.42976509]
[1758628827897,14.27202727,4200.6,4200.5,5.18396509]
[1758628828104,15.9695357,4200.6,4200.5,5.18396509]
[1758628828341,15.7655357,4200.6,4200.5,5.18396509]
[1758628828547,15.7655357,4200.6,4200.5,2.38466896]
[1758628829043,14.9735357,4200.6,4200.5,2.38466896]
[1758628829344,14.76636641,4200.6,4200.5,2.38466896]
[1758628829549,14.76636641,4200.6,4200.5,2.63046896]
[1758628830106,14.76636641,4200.6,4200.5,2.38466896]
[1758628830302,6.59497333,4200.6,4200.5,2.38466896]
[1758628830843,6.59497333,4200.6,4200.5,2.63046896]
[1758628831202,6.59497333,4200.6,4200.5,3.10296896]
[1758628831399,8.02597333,4200.6,4200.5,2.63046896]
[1758628832247,8.47967333,4200.6,4200.5,2.38466896]
[1758628833469,10.22951206,4200.6,4200.5,2.38466896]
[1758628833766,10.22951206,4200.6,4200.5,0.004]
[1758628834119,10.22951206,4200.6,4200.5,2.38466896]
[1758628834354,9.77581206,4200.6,4200.5,2.61976896]
[1758628834565,8.02615738,4200.6,4200.5,5.41906509]
[1758628835266,8.15988036,4200.6,4200.5,5.41906509]
[1758628835567,0.87088036,4200.6,4200.5,5.86256509]
[1758628835850,4.42999994,4200.6,4200.5,5.86256509]
[1758628839522,4.42999994,4200.6,4200.5,3.06326896]
[1758628840022,4.42999994,4200.6,4200.5,2.61976896]
[1758628840334,4.42999994,4200.6,4200.5,3.06326896]
[1758628840726,10.44579222,4200.6,4200.5,2.38466896]
[1758628840958,11.1632479,4200.6,4200.5,2.38466896]
[1758628841146,10.9592479,4200.6,4200.5,2.38466896]
[1758628841763,7.94345562,4200.6,4200.5,2.38466896]
[1758628842064,7.82505562,4200.6,4200.5,2.61976896]
[1758628843444,7.82505562,4200.6,4200.5,2.38466896]
[1758628844324,7.82505562,4200.6,4200.5,2.61976896]
[1758628845055,7.82538682,4200.6,4200.5,2.61976896]
[1758628845558,7.46845568,4200.6,4200.5,2.61976896]
[1758628846058,7.82546361,4200.6,4200.5,2.61976896]
[1758628846256,7.60233365,4200.6,4200.5,2.61976896]
[1758628846560,7.69162302,4200.6,4200.5,2.61976896]
[1758628846926,7.46845568,4200.6,4200.5,2.61976896]
[1758628847349,7.82552553,4200.6,4200.5,2.61976896]
[1758628847747,9.10268837,4200.6,4200.5,2.38466896]
[1758628847928,11.19138837,4200.6,4200.5,2.38466896]
[1758628848142,11.83336232,4200.6,4200.5,2.38466896]
[1758628848960,11.83336406,4200.6,4200.5,2.38466896]
[1758628850372,11.04136406,4200.6,4200.5,2.38466896]
[1758628851796,11.83336406,4200.6,4200.5,2.38466896]
[1758628852849,11.62936406,4200.6,4200.5,2.38466896]
[1758628854171,11.19059011,4200.6,4200.5,2.38466896]
[1758628855693,10.98659011,4200.6,4200.5,2.38466896]
[1758628858196,10.98661506,4200.6,4200.5,2.38466896]
[1758628861970,6.73658685,4200.6,4200.5,2.38466896]
[1758628862196,3.87075222,4200.6,4200.5,3.08056896]
[1758628862775,4.82475222,4200.6,4200.5,3.08056896]
[1758628865506,4.82475222,4200.6,4200.5,2.62646896]
[1758628865705,4.82475222,4200.6,4200.5,2.38466896]
[1758628865926,4.82475222,4200.6,4200.5,2.62646896]
[1758628866087,7.82475222,4200.6,4200.5,2.38466896]
[1758628866805,8.86862018,4200.6,4200.5,2.38466896]
[1758628867007,18.6780037,4200.6,4200.5,2.38466896]
[1758628867184,19.11780854,4200.6,4200.5,2.38466896]
[1758628867384,19.96464317,4200.6,4200.5,2.38466896]
[1758628867781,19.76064317,4200.6,4200.5,2.38466896]
[1758628868616,21.19164317,4200.6,4200.5,2.38466896]
[1758628869822,21.39564317,4200.6,4200.5,2.38466896]
[1758628871536,21.19164317,4200.6,4200.5,2.38466896]
[1758628871724,21.39564317,4200.6,4200.5,2.38466896]
[1758628872035,20.75280854,4200.6,4200.5,2.38466896]
[1758628872240,20.75280854,4200.6,4200.5,0.004]
[1758628872241,20.54880854,4200.6,4200.5,0.004]
[1758628872437,5.223,4200.5,4200.4,0.004]
[1758628872611,9.39379303,4200.5,4200.4,0.004]
[1758628872817,10.03759303,4200.5,4200.4,0.004]
[1758628873247,10.03679303,4200.5,4200.4,0.004]
[1758628873931,9.17939466,4200.5,4200.4,0.004]
[1758628874125,24.79877818,4200.5,4200.4,0.004]
[1758628874330,25.00277818,4200.5,4200.4,0.004]
[1758628876330,25.85974506,4200.5,4200.4,0.004]
[1758628876526,25.0027758,4200.5,4200.4,0.004]
[1758628877414,0.9104,4200.4,4200.3,0.004]
[1758628877721,10.51513436,4200.4,4200.3,0.004]
[1758628877907,9.21086308,4200.4,4200.3,0.004]
[1758628878111,11.59158872,4200.4,4200.3,0.004]
[1758628878311,9.21086308,4200.4,4200.3,0.004]
[1758628878539,9.21086308,4200.4,4199.9,0.004]
[1758628878540,2.223,4200.0,4199.9,0.004]
[1758628878709,18.23572805,4200.0,4199.9,0.004]
[1758628878921,18.70622805,4200.0,4199.9,0.004]
[1758628879124,17.84962314,4200.0,4199.9,0.004]
[1758628880442,18.05362314,4200.0,4199.9,0.004]
[1758628880762,17.84962314,4200.0,4199.9,0.004]
[1758628880963,7.56973962,4200.0,4199.9,2.38500907]
[1758628881262,8.95851589,4200.0,4199.9,2.62500907]
[1758628881460,9.75051589,4200.0,4199.9,2.62500907]
[1758628882024,3.73551589,4200.0,4199.9,2.62500907]
[1758628882232,9.75151589,4200.0,4199.9,2.62500907]
[1758628882627,3.73551589,4200.0,4199.9,2.62500907]
[1758628882828,9.75151589,4200.0,4199.9,3.09970907]
[1758628883359,9.10943962,4200.0,4199.9,2.62500907]
[1758628883856,9.10943962,4200.0,4199.9,3.09970907]
[1758628886299,12.10929997,4200.0,4199.9,3.09970907]
[1758628887654,10.04929997,4200.0,4199.9,3.09970907]
[1758628887858,12.10929997,4200.0,4199.9,3.09970907]
[1758628888754,6.09329997,4200.0,4199.9,3.09970907]
[1758628889095,2.41684429,4200.0,4199.9,3.09970907]
[1758628889405,0.0002,4200.6,4200.5,2.38066896]
[1758628889593,6.9572,4200.6,4200.5,2.38066896]
[1758628889800,6.9572,4200.6,4200.5,3.09536896]
[1758628895346,6.9572,4200.6,4200.5,2.62066896]
[1758628895652,7.93555881,4200.6,4200.5,2.38066896]
[1758628896209,8.90145881,4200.6,4200.5,2.38066896]
[1758628897534,8.90145881,4200.6,4200.5,2.62086896]
[1758628898230,8.90065881,4200.6,4200.5,2.62086896]
[1758628899832,8.90065881,4200.6,4200.5,2.38066896]
[1758628900197,9.36575881,4200.6,4200.5,2.38066896]
[1758628900404,1.431,4200.4,4200.3,2.38478232]
[1758628900621,16.52258361,4200.4,4200.3,2.38478232]
[1758628900826,16.96874233,4200.4,4200.3,2.38478232]
[1758628901240,17.1915147,4200.4,4200.3,2.38478232]
[1758628901542,17.32517812,4200.4,4200.3,2.38478232]
[1758628902045,17.32518101,4200.4,4200.3,2.38478232]
[1758628902246,17.79967648,4200.4,4200.3,2.38478232]
[1758628904527,17.79968247,4200.4,4200.3,2.38478232]
[1758628904723,17.325187,4200.4,4200.3,2.38478232]
[1758628905828,13.095187,4200.4,4200.3,2.38478232]
[1758628906748,11.46279319,4200.4,4200.3,2.38478232]
[1758628907152,10.99769319,4200.4,4200.3,2.38478232]
[1758628907648,10.99772044,4200.4,4200.3,2.62498232]
[1758628907824,10.99772044,4200.4,4200.3,2.38478232]
[1758628908026,10.99772044,4200.4,4200.3,2.62498232]
[1758628908261,9.04672044,4200.4,4200.3,2.62498232]
[1758628908468,15.06472044,4200.4,4200.3,2.62498232]
[1758628909572,14.70824852,4200.4,4200.3,2.62498232]
[1758628909734,15.06482546,4200.4,4200.3,2.62498232]
[1758628910859,15.06482546,4200.4,4200.3,2.38478232]
[1758628911635,10.83482546,4200.4,4200.3,6.61478232]
[1758628912379,13.83482546,4200.4,4200.3,6.61478232]
[1758628913281,13.83482546,4200.4,4200.3,6.85498232]
[1758628915066,13.83482546,4200.4,4200.3,6.61478232]
[1758628915462,14.29992546,4200.4,4200.3,6.61478232]
[1758628916284,13.83507515,4200.4,4200.3,6.61478232]
[1758628916439,13.83507515,4200.4,4200.3,6.85498232]
[1758628917553,5.65808544,4200.4,4200.3,6.85498232]
[1758628917961,7.31282663,4200.4,4200.3,6.85498232]
[1758628918169,9.37282663,4200.4,4200.3,7.30658232]
[1758628918669,3.35682663,4200.4,4200.3,7.30658232]
[1758628918869,9.23911028,4200.4,4200.3,7.30658232]
[1758628919036,9.3730546,4200.4,4200.3,7.30658232]
[1758628919235,9.3730546,4200.4,4200.3,6.61478232]
[1758628919673,9.8381546,4200.4,4200.3,6.61478232]
[1758628919973,11.27711869,4200.4,4200.3,6.61478232]
[1758628920748,11.42764994,4200.4,4200.3,6.61478232]
[1758628921138,10.75854994,4200.4,4200.3,6.61478232]
[1758628921358,11.22364994,4200.4,4200.3,6.61478232]
[1758628922489,10.75854994,4200.4,4200.3,6.61478232]
[1758628923076,10.75774994,4200.4,4200.3,6.61478232]
[1758628924264,9.96574994,4200.4,4200.3,6.61478232]
[1758628924473,9.96593588,4200.4,4200.3,6.84738232]
[1758628925007,9.96593588,4200.4,4200.3,6.61478232]
[1758628925170,10.39653588,4200.4,4200.3,6.61478232]
[1758628925371,10.39653588,4200.4,4200.3,4.234]
[1758628925607,10.39653588,4200.4,4200.3,6.61478232]
[1758628925772,10.60053588,4200.4,4200.3,6.61478232]
[1758628926604,10.60153588,4200.4,4200.3,6.61478232]
[1758628930117,20.4271306,4200.4,4200.3,4.234]
[1758628930286,12.6784434,4200.4,4200.3,4.05515869]
[1758628931318,3.9104,4200.3,4200.1,4.23]
[1758628931490,27.43450675,4200.2,4200.1,4.23]
[1758628931691,28.05016547,4200.2,4200.1,4.23]
[1758628935092,3.9104,4200.1,4199.9,0.004]
[1758628935293,9.49436092,4200.0,4199.9,0.004]
[1758628935624,12.55285724,4200.0,4199.9,0.004]
[1758628937101,12.55259968,4200.0,4199.9,0.004]
[1758628938029,12.34859968,4200.0,4199.9,0.004]
[1758628938234,12.34859968,4200.0,4199.9,2.38500907]
[1758628938737,11.06132849,4200.0,4199.9,2.38500907]
[1758628938910,11.06132849,4200.0,4199.9,2.61180907]
[1758628939328,11.06132849,4200.0,4199.9,0.2308]
[1758628939731,11.06132849,4200.0,4199.9,2.61180907]
[1758628939932,11.06123154,4200.0,4199.9,2.61180907]
[1758628940322,7.10623154,4200.0,4199.9,2.61180907]
[1758628940824,13.12123154,4200.0,4199.9,3.04690907]
[1758628941029,13.76328841,4200.0,4199.9,3.04690907]
[1758628941538,3.87139394,4200.0,4199.9,3.04690907]
[1758628941696,7.82639394,4200.0,4199.9,3.04690907]
[1758628943629,7.82639394,4200.0,4199.9,2.61180907]
[1758628943836,7.82639394,4200.0,4199.9,2.38500907]
[1758628944222,7.82639394,4200.0,4199.9,2.61180907]
[1758628945341,7.82624765,4200.0,4199.9,2.61180907]
[1758628945547,7.82624765,4200.0,4199.9,6.84180907]
[1758628945548,9.88724765,4200.0,4199.9,6.84180907]
[1758628945863,9.88724765,4200.0,4199.9,7.27690907]
[1758628946073,9.88724765,4200.0,4199.9,6.84180907]
[1758628948174,9.88644765,4200.0,4199.9,6.84180907]
[1758628950263,10.33814765,4200.0,4199.9,6.61500907]
[1758628950573,11.9163075,4200.0,4199.9,4.234]
[1758628950881,11.9163075,4200.0,4199.9,6.61500907]
[1758628950882,20.29729721,4200.0,4199.9,6.61500907]
[1758628951040,21.08929721,4200.0,4199.9,4.234]
[1758628951245,21.9459684,4200.0,4199.9,4.234]
[1758628952854,13.11327869,4200.0,4199.9,6.61500907]
[1758628953179,3.87044765,4200.0,4199.9,7.29820907]
[1758628953396,10.52806914,4200.0,4199.9,7.29820907]
[1758628956199,9.88544765,4200.0,4199.9,7.29820907]
[1758628956769,10.52820214,4200.0,4199.9,7.29820907]
[1758628957087,10.52920214,4200.0,4199.9,7.29820907]
[1758628957662,5.46920214,4200.0,4199.9,7.29820907]
[1758628957862,4.82644765,4200.0,4199.9,7.29820907]
[1758628958095,7.82644765,4200.0,4199.9,7.29820907]
[1758628958469,7.82644765,4200.0,4199.9,6.61500907]
[1758628959375,7.82644765,4200.0,4199.9,6.84820907]
[1758628961283,7.82644765,4200.0,4199.9,6.61500907]
[1758628961827,7.82644765,4200.0,4199.9,6.84820907]
[1758628963513,7.82644765,4200.0,4199.9,6.61500907]
[1758628963898,10.16386684,4200.0,4199.9,4.234]
[1758628964103,18.34085655,4200.0,4199.9,6.61500907]
[1758628964300,18.34085655,4200.0,4199.9,4.234]
[1758628964500,19.33685655,4200.0,4199.9,4.234]
[1758628964827,19.33785655,4200.0,4199.9,4.234]
[1758628965328,3.9104,4199.9,4199.8,0.004]
[1758628965526,7.24262653,4199.9,4199.8,0.004]
[1758628965728,7.38067734,4199.9,4199.8,0.004]
[1758628965929,9.18132819,4199.9,4199.8,0.004]
[1758628967031,9.18161266,4199.9,4199.8,0.004]
[1758628967330,7.89534288,4199.9,4199.8,0.004]
[1758628967830,7.53831867,4199.9,4199.8,0.004]
[1758628968017,7.76152275,4199.9,4199.8,0.004]
[1758628968225,7.53831867,4199.9,4199.8,0.004]
[1758628968631,17.35500415,4199.9,4199.8,0.004]
[1758628970110,17.71214522,4199.9,4199.8,0.004]
[1758628971036,17.48893205,4199.9,4199.8,0.004]
[1758628971341,0.792,4199.8,4199.7,4.23]
[1758628971641,12.40583443,4199.8,4199.7,4.23]
[1758628971798,12.38689315,4199.8,4199.7,4.23]
[1758628972204,12.38686031,4199.8,4199.7,4.23]
[1758628972540,11.59486031,4199.8,4199.7,4.23]
[1758628972936,12.38606031,4199.8,4199.7,4.23]
[1758628974414,12.38606031,4199.8,4199.7,6.61112246]
[1758628974615,11.91936031,4199.8,4199.7,6.61112246]
[1758628974835,12.38606031,4199.8,4199.7,4.23]
[1758628975441,11.91936031,4199.8,4199.7,6.84432246]
[1758628976021,11.06150386,4199.8,4199.7,6.84432246]
[1758628976224,0.87146626,4199.8,4199.7,7.29432246]
[1758628976454,4.31508519,4199.8,4199.7,7.29432246]
[1758628976958,0.35708519,4199.8,4199.7,7.29432246]
[1758628977254,4.31508519,4199.8,4199.7,7.29432246]
[1758628978035,4.31498006,4199.8,4199.7,7.29432246]
[1758628978864,4.31487989,4199.8,4199.7,7.29432246]
[1758628980864,0.001,4200.0,4199.9,2.38100907]
[1758628981175,0.001,4200.2,4200.1,2.38089569]
[1758628981479,2.061,4200.4,4200.3,2.38078232]
[1758628981625,3.961,4200.4,4200.3,3.06918232]
[1758628981834,3.961,4200.4,4200.3,17.56918232]
[1758628982076,3.961,4200.4,4200.3,21.44133642]
[1758628984143,3.961,4200.4,4200.3,6.94133642]
[1758628987202,0.0888459,4200.4,4200.3,3.06918232]
[1758628987376,3.961,4200.6,4200.4,2.38072564]
[1758628987583,3.961,4200.6,4200.4,2.62912564]
[1758628987739,3.961,4200.6,4200.4,2.38072564]
[1758628988165,3.961,4200.6,4200.4,2.62912564]
[1758628989577,0.001,4200.6,4200.4,2.38072564]
[1758628989745,3.96,4200.5,4200.4,2.38072564]
[1758628990374,3.96,4200.5,4200.4,6.61072564]
[1758628990375,7.6243,4200.5,4200.4,6.61072564]
[1758628990566,9.37049268,4200.5,4200.4,6.61072564]
[1758628990865,9.16649268,4200.5,4200.4,6.61072564]
[1758628992264,9.37049268,4200.5,4200.4,6.61072564]
[1758628992591,9.16649268,4200.5,4200.4,6.61072564]
[1758628993091,9.52236911,4200.5,4200.4,6.61072564]
[1758628995592,9.52239095,4200.5,4200.4,6.61072564]
[1758628996368,9.06209095,4200.5,4200.4,6.61072564]
[1758628996653,7.31589827,4200.5,4200.4,6.61072564]
[1758628996887,3.35689827,4200.5,4200.4,6.85132564]
[1758628997096,7.43429827,4200.5,4200.4,6.85132564]
[1758628997306,7.43429827,4200.5,4200.4,7.28002564]
[1758628997565,7.43433783,4200.5,4200.4,7.28002564]
[1758628998193,7.43433783,4200.5,4200.4,6.85132564]
[1758628998357,7.43353783,4200.5,4200.4,6.61072564]
[1758628999122,7.86883783,4200.5,4200.4,6.61072564]
[1758628999328,18.67660709,4200.5,4200.4,6.61072564]
[1758628999496,19.1893737,4200.5,4200.4,6.61072564]
[1758629003327,18.9853737,4200.5,4200.4,6.61072564]
[1758629006194,18.9853737,4200.5,4200.3,0.004]
[1758629006195,3.792,4200.4,4200.3,0.004]
[1758629006361,8.61863977,4200.4,4200.3,0.004]
[1758629006694,7.74284204,4200.4,4200.3,0.004]
[1758629007890,8.59956994,4200.4,4200.3,2.38478232]
[1758629008056,6.31154204,4200.4,4200.3,2.38478232]
[1758629008253,12.33319719,4200.4,4200.3,2.38478232]
[1758629008748,12.76849719,4200.4,4200.3,2.38478232]
[1758629009358,12.76849719,4200.4,4200.3,0.004]
[1758629009359,13.56049719,4200.4,4200.3,0.004]
[1758629009565,14.62121989,4200.4,4200.3,4.234]
[1758629009873,14.62121989,4200.4,4200.3,6.61478232]
[1758629010070,14.62121989,4200.4,4200.3,4.234]
[1758629011589,14.62114475,4200.4,4200.3,0.004]
[1758629014084,13.56042205,4200.4,4200.3,2.38478232]
[1758629014252,13.56042205,4200.4,4200.3,0.004]
[1758629015290,13.56068634,4200.4,4200.3,0.004]
[1758629015687,14.62140904,4200.4,4200.3,0.004]
[1758629015895,13.76468634,4200.4,4200.3,0.004]
[1758629016981,13.76468634,4200.4,4199.9,0.004]
[1758629017179,10.60868548,4200.1,4199.9,0.004]
[1758629017398,5.64349002,4200.0,4199.9,0.004]
[1758629017608,6.09314874,4200.0,4199.9,0.004]
[1758629018001,6.09314874,4200.0,4199.9,2.38500907]
[1758629018202,5.62454874,4200.0,4199.9,2.38500907]
[1758629018519,7.86584638,4200.0,4199.9,2.38500907]
[1758629018882,9.92584638,4200.0,4199.9,2.61580907]
[1758629019084,9.92584638,4200.0,4199.9,2.38500907]
[1758629019488,10.56801299,4200.0,4199.9,2.38500907]
[1758629019907,11.03661299,4200.0,4199.9,0.004]
[1758629020112,10.39444638,4200.0,4199.9,0.004]
[1758629020520,10.39444638,4200.0,4199.9,2.38500907]
[1758629021317,9.92584638,4200.0,4199.9,2.38500907]
[1758629022035,1.66154874,4200.0,4199.9,2.61580907]
[1758629022326,6.26570844,4200.0,4199.9,2.61580907]
[1758629022507,4.83154874,4200.0,4199.9,2.61580907]
[1758629022816,7.83254874,4200.0,4199.9,3.04600907]
[1758629023016,7.83174874,4200.0,4199.9,3.04600907]
[1758629023217,3.86874874,4200.0,4199.9,3.04600907]
[1758629023398,7.31900752,4200.0,4199.9,3.04600907]
[1758629023597,7.83174874,4200.0,4199.9,3.04600907]
[1758629024620,3.86874874,4200.0,4199.9,7.27600907]
[1758629024833,0.35600752,4200.0,4199.9,7.27600907]
[1758629025123,0.47440752,4200.0,4199.9,7.27600907]
[1758629026518,0.47440752,4200.0,4199.9,6.84580907]
[1758629026822,0.47440752,4200.0,4199.9,7.27600907]
[1758629027032,7.43740752,4200.0,4199.9,6.61500907]
[1758629027197,7.95014874,4200.0,4199.9,6.61500907]
[1758629027391,7.95014874,4200.0,4199.9,6.84580907]
[1758629029741,7.72793231,4200.0,4199.9,6.84580907]
[1758629030096,7.72793231,4200.0,4199.9,6.61500907]
[1758629031347,4.72793231,4200.0,4199.9,6.61500907]
[1758629032243,5.19653231,4200.0,4199.9,6.61500907]
[1758629032620,9.9418933,4200.0,4199.9,0.004]
[1758629032821,12.5560933,4200.0,4199.9,0.004]
[1758629034607,12.92937953,4200.0,4199.9,0.004]
[1758629034941,13.15255932,4200.0,4199.9,0.004]
[1758629035146,14.00886391,4200.0,4199.9,0.004]
[1758629036345,13.63557768,4200.0,4199.9,0.004]
[1758629037553,13.63657768,4200.0,4199.9,0.004]
[1758629038456,13.43257768,4200.0,4199.9,0.004]
[1758629038955,13.20939789,4200.0,4199.9,0.004]
[1758629039259,13.43257472,4200.0,4199.9,0.004]
[1758629040230,13.43257472,4200.0,4199.9,2.38500907]
[1758629040566,12.10767013,4200.0,4199.9,2.38500907]
[1758629040731,12.48095327,4200.0,4199.9,2.38500907]
[1758629041574,14.63487114,4200.0,4199.9,2.38500907]
[1758629041870,8.47941451,4200.0,4199.9,3.07150907]
[1758629042077,8.47941451,4200.0,4199.9,7.30150907]
[1758629042370,16.45082701,4200.0,4199.9,4.234]
[1758629042573,16.45082701,4200.0,4199.9,6.61500907]
[1758629043831,12.48482701,4200.0,4199.9,6.61500907]
[1758629044034,16.45182701,4200.0,4199.9,6.61500907]
[1758629044234,16.45182701,4200.0,4199.9,7.30150907]
[1758629044235,16.01462701,4200.0,4199.9,7.30150907]
[1758629044475,16.65731286,4200.0,4199.9,6.85420907]
[1758629045167,16.65727343,4200.0,4199.9,6.85420907]
[1758629045367,12.69027343,4200.0,4199.9,6.85420907]
[1758629045579,16.65727343,4200.0,4199.9,6.85420907]
[1758629045738,12.69027343,4200.0,4199.9,6.85420907]
[1758629046070,16.65627343,4200.0,4199.9,6.85420907]
[1758629047163,12.69027343,4200.0,4199.9,6.85420907]
[1758629047376,16.65627343,4200.0,4199.9,6.85420907]
[1758629047975,16.65547343,4200.0,4199.9,6.85420907]
[1758629048172,16.29934494,4200.0,4199.9,6.85420907]
[1758629048377,16.52248717,4200.0,4199.9,7.30150907]
[1758629048879,3.73688345,4200.0,4199.9,7.30150907]
[1758629049050,7.70288345,4200.0,4199.9,7.30150907]
[1758629049681,0.85528345,4200.0,4199.9,7.30150907]
[1758629049861,0.34254223,4200.0,4199.9,7.30150907]
[1758629050258,1e-08,4200.0,4199.9,21.80150907]
[1758629050579,0.51274122,4200.4,4199.9,21.80150907]
[1758629050580,4.47994122,4200.5,4200.4,2.38072564]
[1758629050780,0.0002,4200.5,4200.4,3.09103289]
[1758629051586,0.0002,4200.5,4200.4,11.26722564]
[1758629054480,0.0002,4200.5,4200.4,25.76722564]
[1758629057403,0.0002,4200.5,4200.4,11.26722564]
[1758629057980,0.0002,4200.5,4200.4,25.76722564]
[1758629058305,0.001,4200.7,4200.6,6.60941229]
[1758629058512,0.001,4200.7,4200.6,10.57741229]
[1758629058667,0.001,4200.7,4200.6,11.23171229]
[1758629060003,0.13434036,4200.7,4200.6,11.23171229]
[1758629060485,0.001,4200.9,4200.6,8.8511]
[1758629060672,0.001,4200.9,4200.8,2.38049895]
[1758629060870,0.001,4200.9,4200.8,6.34949895]
[1758629061071,0.001,4200.9,4200.8,7.00379895]
[1758629061406,0.001,4200.9,4200.8,21.50379895]
[1758629064583,0.001,4200.9,4200.8,21.07429895]
[1758629065201,0.001,4200.9,4200.8,21.50279895]
[1758629065899,0.22312845,4201.3,4201.0,6.60718562]
[1758629066577,0.22312845,4201.3,4201.0,6.83298562]
[1758629067385,0.001,4201.3,4201.0,11.22848562]
[1758629070113,0.001,4201.3,4201.0,10.57418562]
[1758629070316,0.001,4201.3,4201.0,10.79998562]
[1758629071021,0.001,4201.3,4201.0,25.29998562]
[1758629072184,0.001,4201.3,4201.0,25.07418562]
[1758629072399,0.001,4201.3,4201.0,25.31978562]
[1758629072595,0.13435173,4201.1,4201.0,25.31978562]
[1758629072894,0.13355173,4201.1,4201.0,25.31978562]
[1758629073301,1e-08,4201.1,4201.0,25.76948562]
[1758629075406,1e-08,4201.1,4201.0,25.31978562]
[1758629075715,1e-08,4201.1,4201.0,25.76948562]
[1758629077112,0.001,4201.5,4201.4,6.48655898]
[1758629077422,0.001,4201.5,4201.4,10.45155898]
[1758629077621,1e-08,4201.7,4201.6,2.38004569]
[1758629077786,1e-08,4201.7,4201.6,6.36884614]
[1758629077987,1e-08,4201.9,4201.8,2.3799324]
[1758629078218,0.001,4202.0,4201.9,2.37987577]
[1758629078518,0.001,4202.0,4201.9,7.32377451]
[1758629078722,0.001,4202.0,4201.9,7.29997576]
[1758629078887,0.001,4202.0,4201.9,7.39539709]
[1758629079090,0.001,4202.0,4201.9,21.44569709]
[1758629079290,1e-08,4202.4,4202.3,2.37964923]
[1758629079491,1e-08,4202.4,4202.3,10.59524571]
[1758629079791,1e-08,4202.4,4202.3,11.26674922]
[1758629081829,0.51272956,4203.2,4202.3,8.31899999]
[1758629082021,0.592,4203.7,4203.6,2.37891331]
[1758629082195,0.796,4203.7,4203.6,2.40270244]
[1758629082399,1e-08,4203.7,4203.6,6.50910243]
[1758629082621,0.85630459,4204.6,4203.6,6.50910243]
[1758629082622,1.35886982,4204.8,4204.0,2.37864945]
[1758629082824,0.1184,4204.7,4204.6,2.37834752]
[1758629083034,0.796,4204.7,4204.6,2.37834752]
[1758629083189,0.796,4204.7,4204.6,2.40213099]
[1758629084328,0.91716226,4204.7,4204.6,2.40213099]
[1758629084824,0.71316226,4204.7,4204.6,0.02378347]
[1758629085125,0.71316226,4204.7,4204.6,2.37834752]
[1758629085126,1.82857027,4204.7,4204.6,2.37834752]
[1758629086401,4.82857027,4204.7,4204.6,2.37834752]
[1758629087216,10.00548814,4204.7,4203.3,0.71544661]
[1758629087527,10.00548814,4204.7,4203.5,0.02378969]
[1758629087528,0.1184,4204.4,4203.5,0.02378969]
[1758629087728,3.792,4204.5,4203.9,2.37874354]
[1758629087729,11.17691787,4204.0,4203.9,2.37874354]
[1758629087930,11.17691787,4204.0,4203.1,0.1184]
[1758629087931,3.0,4203.9,4203.7,6.48521454]
[1758629088131,3.98,4204.0,4203.8,4.10639999]
[1758629088331,1.0756,4203.9,4203.7,2.37881455]
[1758629088506,0.1184,4203.7,4203.3,2.37907212]
[1758629088706,0.1184,4203.7,4203.4,2.3790046]
[1758629088929,0.1184,4203.7,4203.3,2.37907888]
[1758629088930,0.6776,4203.6,4203.3,2.37907888]
[1758629089116,0.1184,4203.3,4203.2,2.37913257]
[1758629089323,12.1057952,4203.3,4203.2,2.37913257]
[1758629090222,12.32727311,4203.3,4203.2,2.37913257]
[1758629090625,13.94898373,4203.3,4203.2,2.37913257]
[1758629091833,4.15035524,4203.3,4203.2,2.37913257]
[1758629092138,3.94635524,4203.3,4203.2,2.37913257]
[1758629092550,3.94635524,4203.3,4203.2,6.60913257]
[1758629094050,3.47275524,4203.3,4203.2,6.60913257]
[1758629094628,7.45085089,4203.3,4203.2,6.60913257]
[1758629095622,7.4509416,4203.3,4203.2,6.60913257]
[1758629096818,7.9245416,4203.3,4203.2,6.60913257]
[1758629097348,8.1285416,4203.3,4203.2,6.60913257]
[1758629097550,8.1285416,4203.3,4203.2,6.6091397]
[1758629097740,8.95599169,4203.3,4203.2,6.6091397]
[1758629098229,8.1277416,4203.3,4203.2,6.6091397]
[1758629098425,7.9237416,4203.3,4203.2,6.6091397]
[1758629098651,7.92382899,4203.3,4203.2,6.6091397]
[1758629099520,8.12782899,4203.3,4203.2,6.6091397]
[1758629101247,7.92382899,4203.3,4203.2,6.6091397]
[1758629101658,3.792,4203.2,4203.1,4.23]
[1758629101970,15.14149005,4203.2,4203.1,4.23]
[1758629102125,15.12254877,4203.2,4203.1,4.23]
[1758629102469,15.76036034,4203.2,4203.1,4.23]
[1758629102659,18.20319794,4203.2,4203.1,4.23]
[1758629103676,0.792,4203.0,4202.5,2.37948797]
[1758629103856,3.0,4202.7,4202.6,6.60947936]
[1758629104157,18.30754877,4202.7,4202.6,6.60947936]
[1758629104955,18.10354877,4202.7,4202.6,6.60947936]
[1758629106855,3.35462899,4202.7,4202.6,7.29207936]
[1758629107023,0.35462899,4202.7,4202.6,7.29207936]
[1758629107225,0.13305543,4202.7,4202.6,7.29207936]
[1758629107663,0.13305543,4202.7,4202.6,11.26907936]
[1758629108351,0.13305543,4202.7,4202.6,6.60947936]
[1758629109063,0.13305543,4202.7,4202.6,6.85577936]
[1758629109268,3.13305543,4202.7,4202.6,6.60947936]
[1758629109454,5.85445228,4202.7,4202.6,6.60947936]
[1758629110074,5.39245228,4202.7,4202.6,6.60947936]
[1758629110231,5.39280408,4202.7,4202.6,6.60947936]
[1758629110834,0.792,4202.6,4202.1,0.02]
[1758629111154,12.79862849,4202.2,4202.1,0.02]
[1758629111468,18.4365605,4202.2,4202.1,0.02]
[1758629111836,19.1025605,4202.2,4202.1,0.02]
[1758629112639,9.30393201,4202.2,4202.1,0.02]
[1758629112832,9.30393201,4202.2,4202.1,2.39976249]
[1758629113064,10.30642614,4202.2,4202.1,2.39976249]
[1758629113672,9.84442614,4202.2,4202.1,2.39976249]
[1758629113989,7.33373569,4202.2,4202.1,2.64606249]
[1758629115167,0.35573569,4202.2,4202.1,7.31236249]
[1758629115369,0.13340723,4202.2,4202.1,7.31236249]
[1758629115577,3.979,4202.5,4202.4,2.37959261]
[1758629115756,4.33473371,4202.5,4202.4,2.37959261]
[1758629116059,4.79673371,4202.5,4202.4,2.37959261]
[1758629116574,4.33473371,4202.5,4202.4,2.37959261]
[1758629117073,4.33473371,4202.5,4202.4,2.62099261]
[1758629117480,4.33473371,4202.5,4202.4,2.37959261]
[1758629117874,4.33473371,4202.5,4202.4,2.62099261]